fUSD/lending_fUSD_20251024
["ID","MTS","AMOUNT","RATE_DAILY","PERIOD"]
[392271833,1761297032282,-1626.0,0.00037078,2]
[392271835,1761297032292,-186.0,0.00037117,2]
[392271837,1761297032302,-173.0,0.00037117,2]
[392271838,1761297032312,-186.0,0.00037132,2]
[392271839,1761297032323,-202.97,0.00037318,2]
[392271840,1761297032333,-824.0,0.00037356,2]
[392271841,1761297032343,-1269.0,0.00037356,2]
[392271842,1761297032354,-1185.0,0.00037356,2]
[392271843,1761297032365,-903.0,0.00037356,2]
[392271844,1761297032375,-721.91,0.00037383,2]
[392271845,1761297032395,-181.28,0.00037739,49]
[392271846,1761297032407,-851.99877287,0.0003774,2]
[392271847,1761297032418,-250.0,0.00037874,2]
[392271848,1761297032428,-173.0,0.00038,30]
[392271849,1761297032439,-300.0,0.00038241,7]
[392271850,1761297032450,-153.62,0.00038243,2]
[392271851,1761297032460,-377.62,0.00038342,2]
[392271852,1761297032471,-1628.0,0.00038553,120]
[392271853,1761297032482,-3803.66728662,0.000386,2]
[392271854,1761297032535,-7433.76435314,0.000386,2]
[392271855,1761297032548,-302.15836024,0.000386,2]
[392271856,1761297032558,-1626.0,0.0003865,7]
[392271857,1761297032568,-1659.36252079,0.00038678,90]
[392271858,1761297037880,-282.76086107,0.00038677,15]
[392271859,1761297037890,-500.0,0.00038677,15]
[392271860,1761297037899,-200.34553139,0.00038677,15]
[392271861,1761297037934,-172.64742949,0.00038677,15]
[392271862,1761297037944,-4715.70747921,0.00038678,90]
[392271863,1761297037953,-9999.99,0.00038678,2]
[392271864,1761297037962,-999.99,0.00038678,2]
[392271865,1761297037971,-9999.99,0.00038678,2]
[392271866,1761297037981,-326.8,0.00038678,2]
[392271867,1761297037990,-8992.78,0.00038678,2]
[392271868,1761297037999,-150.99,0.00038678,30]
[392271869,1761297038008,-150.99,0.00038678,2]
[392271870,1761297038018,-343.75,0.00038678,2]
[392271871,1761297038027,-4703.43792636,0.00038678,2]
[392271872,1761297038040,-5296.55207364,0.00038678,2]
[392271873,1761297038049,-2476.65,0.00038678,2]
[392271874,1761297038059,-7689.56,0.00038678,2]
[392271875,1761297038069,-5733.66254694,0.00038678,2]
[392271876,1761297038094,-288.28387414,0.00038678,2]
[392271877,1761297038105,-272.36141139,0.00038678,2]
[392271884,1761297039935,-3705.68216753,0.00038678,2]
[392271885,1761297039945,-500.0,0.00038811,30]
[392271886,1761297039955,-150.0,0.00038827,30]
[392271887,1761297039965,-341.96018648,0.00038827,30]
[392271888,1761297039975,-150.0,0.00038827,30]
[392271889,1761297039984,-378.26494947,0.00038827,30]
[392271890,1761297039997,-157.36610534,0.00038827,30]
[392271891,1761297040006,-150.0,0.00038827,30]
[392271892,1761297040016,-606.19566127,0.00038827,30]
[392271893,1761297040027,-150.0,0.00038827,30]
[392271894,1761297040037,-150.0,0.00038827,30]
[392271895,1761297040049,-150.0,0.00038827,30]
[392271896,1761297040059,-182.90526521,0.00038827,30]
[392271897,1761297040071,-500.0,0.00038827,30]
[392271898,1761297040082,-500.0,0.00038827,30]
[392271899,1761297040094,-150.0,0.00038827,30]
[392271900,1761297040104,-500.0,0.00038827,30]
[392271901,1761297040119,-215.77150183,0.00038827,30]
[392271902,1761297040129,-500.0,0.00038827,30]
[392271903,1761297040139,-500.0,0.00038827,30]
[392271904,1761297040150,-500.0,0.00038827,30]
[392271905,1761297040160,-500.0,0.00038827,30]
[392271906,1761297040169,-500.0,0.00038827,30]
[392271907,1761297040179,-423.93695428,0.00038827,30]
[392271908,1761297040189,-150.0,0.00038827,30]
[392271909,1761297040199,-500.0,0.00038827,30]
[392271910,1761297040212,-150.0,0.00038827,30]
[392271911,1761297040223,-150.0,0.00038827,30]
[392271912,1761297040233,-254.51908023,0.00038827,30]
[392271913,1761297040243,-500.0,0.00038827,30]
[392271914,1761297040253,-149.75148518,0.00038827,30]
[392271915,1761297040265,-150.24851482,0.00038827,30]
[392271916,1761297040275,-500.0,0.00038827,30]
[392271917,1761297040285,-150.0,0.00038827,2]
[392271918,1761297040295,-154.23667976,0.00038827,30]
[392271919,1761297040306,-158.42503137,0.00038827,30]
[392271920,1761297040320,-150.0,0.00038827,30]
[392271921,1761297040330,-150.0,0.00038827,30]
[392271922,1761297040340,-500.0,0.00038827,30]
[392271923,1761297040351,-201.18,0.00038827,30]
[392271924,1761297040360,-500.0,0.00038827,2]
[392271925,1761297040370,-29.63131915,0.00038827,30]
[392271926,1761297040397,-420.86114321,0.00038827,30]
[392271927,1761297040408,-125.50753764,0.00038827,30]
[392271928,1761297040418,-500.0,0.00038827,2]
[392271929,1761297040428,-150.0,0.00038827,30]
[392271930,1761297040438,-150.0,0.00038827,30]
[392271931,1761297040447,-150.0,0.00038827,30]
[392271932,1761297040457,-150.0,0.00038827,30]
[392271933,1761297040467,-150.0,0.00038827,30]
[392271934,1761297040477,-151.18414799,0.00038827,30]
[392271935,1761297040487,-500.0,0.00038827,30]
[392271936,1761297040497,-150.0,0.00038827,30]
[392271937,1761297040507,-150.0,0.00038827,30]
[392271938,1761297040521,-150.0,0.00038827,30]
[392271939,1761297040531,-200.0,0.00038827,30]
[392271940,1761297040541,-957.41,0.00038849,2]
[392271941,1761297040551,-150.0,0.00038882,30]
[392271942,1761297040561,-150.0,0.00038882,30]
[392271943,1761297040571,-150.0,0.00038882,30]
[392271944,1761297040581,-500.0,0.00038882,30]
[392271945,1761297040590,-500.0,0.00038882,30]
[392271946,1761297040600,-151.09343578,0.00038882,30]
[392271947,1761297040610,-500.0,0.00038882,30]
[392271948,1761297040619,-500.0,0.00038882,30]
[392271949,1761297040629,-150.0,0.00038882,30]
[392271950,1761297040638,-153.20718693,0.00038882,30]
[392271951,1761297040648,-500.0,0.00038882,30]
[392271952,1761297040657,-300.0,0.00038882,30]
[392271953,1761297040666,-500.0,0.00038882,30]
[392271954,1761297040676,-150.0,0.00038882,30]
[392271955,1761297040686,-500.0,0.00038882,30]
[392271956,1761297040697,-500.0,0.00038882,2]
[392271957,1761297040709,-576.0,0.00038882,30]
[392271958,1761297040719,-500.0,0.00038882,2]
[392271959,1761297040729,-150.0,0.00038882,30]
[392271960,1761297040738,-150.0,0.00038882,30]
[392271961,1761297040748,-150.0,0.00038882,30]
[392271962,1761297040758,-150.0,0.00038882,30]
[392271963,1761297040768,-150.0,0.00038882,30]
[392271964,1761297040778,-500.0,0.00038882,30]
[392271965,1761297040787,-202.56612552,0.00038882,30]
[392271966,1761297040797,-150.0,0.00038882,30]
[392271967,1761297040806,-150.0,0.00038882,30]
[392271968,1761297040816,-500.0,0.00038905,30]
[392271969,1761297040826,-500.0,0.00038908,30]
[392271971,1761297040836,-500.0,0.00038913,30]
[392271972,1761297040845,-150.0,0.00038937,30]
[392271973,1761297040854,-150.0,0.00038937,30]
[392271974,1761297040864,-150.0,0.00038937,30]
[392271975,1761297040874,-500.0,0.00038937,30]
[392271976,1761297040883,-500.0,0.00038937,30]
[392271977,1761297040893,-554.96191217,0.00038937,30]
[392271978,1761297040997,-500.0,0.00038937,30]
[392271979,1761297041008,-150.0,0.00038937,30]
[392271980,1761297041017,-500.0,0.00038937,30]
[392271981,1761297041026,-300.0,0.00038937,30]
[392271982,1761297041035,-228.85136654,0.00038937,30]
[392271983,1761297041045,-150.0,0.00038937,30]
[392271984,1761297041054,-500.0,0.00038937,30]
[392271985,1761297041075,-500.0,0.00038937,2]
[392271986,1761297041084,-576.0,0.00038937,30]
[392271987,1761297041093,-500.0,0.00038937,2]
[392271988,1761297041103,-151.99993636,0.00038937,30]
[392271989,1761297041113,-274.89583209,0.00038937,30]
[392271990,1761297041122,-150.0,0.00038937,30]
[392271991,1761297041133,-150.0,0.00038937,30]
[392271992,1761297041150,-631.75820498,0.00038937,30]
[392271993,1761297041160,-202.73893435,0.00038937,30]
[392271994,1761297041169,-874.92877392,0.00038976,30]
[392271995,1761297041178,-292.9077299,0.00038991,30]
[392271996,1761297041187,-150.0,0.00038991,30]
[392271997,1761297041196,-216.77256822,0.00038991,30]
[392271998,1761297041206,-500.0,0.00038991,30]
[392271999,1761297041215,-364.51762827,0.00038991,30]
[392272000,1761297041225,-500.0,0.00038991,30]
[392272001,1761297041235,-214.91827268,0.00038991,30]
[392272002,1761297041243,-440.58315393,0.00038991,30]
[392272003,1761297041257,-59.41684607,0.00038991,30]
[392272004,1761297041266,-238.31815393,0.00038991,30]
[392272005,1761297041296,-61.68184607,0.00038991,30]
[392272006,1761297041305,-150.0,0.00038991,30]
[392272007,1761297041315,-500.0,0.00038991,30]
[392272008,1761297041323,-500.0,0.00038991,2]
[392272009,1761297041333,-576.0,0.00038991,30]
[392272010,1761297041342,-500.0,0.00038991,2]
[392272011,1761297041352,-150.0,0.00038991,30]
[392272012,1761297041360,-150.0,0.00038991,30]
[392272013,1761297041370,-15312.40538186,0.00039,60]
[392272014,1761297041389,-361.4924748,0.00039,2]
[392272015,1761297041399,-200.0,0.00039,7]
[392272016,1761297041409,-202.2740177,0.00039046,30]
[392272017,1761297041419,-500.0,0.00039046,30]
[392272018,1761297041428,-500.0,0.00039046,30]
[392272019,1761297041438,-500.0,0.00039046,30]
[392272020,1761297041447,-301.38876742,0.00039046,30]
[392272021,1761297041456,-291.46363069,0.00039046,30]
[392272022,1761297041465,-500.0,0.00039046,30]
[392272023,1761297041475,-500.0,0.00039046,2]
[392272024,1761297041485,-576.0,0.00039046,30]
[392272025,1761297041496,-500.0,0.00039046,2]
[392272026,1761297041505,-150.0,0.00039046,30]
[392272027,1761297041515,-224.38776277,0.00039046,30]
[392272028,1761297041524,-1271.33498307,0.00039063,2]
[392272029,1761297041538,-500.0,0.00039085,30]
[392272030,1761297041548,-500.0,0.00039101,30]
[392272031,1761297041558,-374.544644,0.00039101,30]
[392272032,1761297041567,-500.0,0.00039101,30]
[392272033,1761297041577,-500.0,0.00039101,30]
[392272034,1761297041586,-550.0,0.00039101,2]
[392272035,1761297041596,-576.0,0.00039101,30]
[392272036,1761297041606,-500.0,0.00039101,2]
[392272037,1761297041616,-150.000001,0.00039101,30]
[392272038,1761297041626,-201.18,0.00039101,30]
[392272039,1761297041636,-500.0,0.00039116,30]
[392272040,1761297041646,-3487.0,0.00039129,2]
[392272041,1761297041656,-6539.0,0.00039129,2]
[392272042,1761297041666,-6456.0,0.00039129,2]
[392272043,1761297041675,-558.0,0.00039129,2]
[392272044,1761297041684,-150.0,0.00039136,7]
[392272045,1761297041694,-150.0,0.00039141,7]
[392272046,1761297041703,-933.43,0.00039153,2]
[392272047,1761297041713,-16439.75,0.00039153,2]
[392272048,1761297041722,-216.89683447,0.00039156,30]
[392272049,1761297041732,-500.0,0.00039156,30]
[392272050,1761297041741,-500.0,0.00039156,30]
[392272051,1761297041751,-576.0,0.00039156,30]
[392272052,1761297041760,-500.0,0.00039163,2]
[392272053,1761297041769,-146368.01126756,0.00039163,2]
[392272054,1761297041779,-301.47,0.00039163,2]
[392272055,1761297041789,-828.48,0.00039163,2]
[392272056,1761297041799,-168.52,0.00039163,2]
[392272057,1761297041809,-547.6,0.00039163,2]
[392272058,1761297041823,-486.76,0.00039163,2]
[392272059,1761297041832,-414.35,0.00039164,2]
[392272060,1761297041842,-414.35,0.00039164,2]
[392272061,1761297041851,-339.48,0.00039164,2]
[392272062,1761297041861,-414.35,0.00039164,2]
[392272063,1761297041871,-414.35,0.00039164,2]
[392272064,1761297041880,-168.52,0.00039164,2]
[392272065,1761297041890,-176.35,0.00039164,2]
[392272066,1761297041899,-176.35,0.00039164,2]
[392272067,1761297041909,-1095.06,0.00039164,2]
[392272069,1761297041919,-176.35,0.00039164,2]
[392272071,1761297041929,-176.35,0.00039164,2]
[392272073,1761297041938,-1626.0,0.000392,7]
[392272075,1761297041948,-500.0,0.00039211,30]
[392272077,1761297041957,-500.0,0.00039211,30]
[392272078,1761297041968,-576.0,0.00039211,30]
[392272079,1761297041978,-354.0,0.0003922,120]
[392272080,1761297041987,-267.0,0.00039233,14]
[392272081,1761297041997,-602.8778527,0.00039248,2]
[392272082,1761297042007,-427.79060698,0.00039265,30]
[392272083,1761297042020,-150.0,0.00039265,30]
[392272084,1761297042029,-576.0,0.00039265,30]
[392272085,1761297042039,-500.0,0.00039317,30]
[392272086,1761297042048,-576.0,0.0003932,30]
[392272087,1761297042058,-696.48,0.00039327,2]
[392272088,1761297042067,-696.48,0.00039327,2]
[392272089,1761297042077,-696.48,0.00039327,2]
[392272090,1761297042087,-475.59,0.00039327,2]
[392272091,1761297042098,-475.59,0.00039327,2]
[392272092,1761297042108,-696.48,0.00039327,2]
[392272093,1761297042118,-475.59,0.00039327,2]
[392272094,1761297042129,-500.0,0.00039359,30]
[392272095,1761297042141,-160.58054396,0.00039365,7]
[392272096,1761297042151,-576.0,0.00039375,30]
[392272097,1761297042163,-201.18,0.00039375,30]
[392272098,1761297042174,-629.2787109,0.00039387,11]
[392272099,1761297042185,-933.43,0.00039427,2]
[392272100,1761297042196,-576.0,0.0003943,30]
[392272101,1761297042211,-19169.1785783,0.00039437,3]
[392272102,1761297042222,-170.89185228,0.00039445,15]
[392272103,1761297042233,-8339.13244703,0.00039447,2]
[392272104,1761297042243,-500.0,0.00039459,30]
[392272105,1761297042253,-163.02,0.00039465,2]
[392272106,1761297042264,-1630.0,0.00039474,2]
[392272107,1761297042274,-19169.1785783,0.00039474,3]
[392272108,1761297042283,-602.87785271,0.00039476,2]
[392272109,1761297042295,-150.0,0.00039484,7]
[392272110,1761297042305,-576.0,0.00039485,30]
[392272111,1761297042315,-500.0,0.00039487,30]
[392272112,1761297042325,-933.43,0.00039502,2]
[392272113,1761297042335,-57507.535735,0.00039512,3]
[392272114,1761297042346,-933.43,0.00039512,2]
[392272115,1761297042356,-16439.75,0.00039512,2]
[392272116,1761297042366,-1628.0,0.00039517,2]
[392272117,1761297042376,-500.0,0.00039521,2]
[392272118,1761297042387,-66417.83315575,0.00039522,120]
[392272119,1761297042414,-31840.07858804,0.00039522,120]
[392272120,1761297042425,-576.0,0.00039539,30]
[392272121,1761297042436,-500.0,0.00039545,30]
[392272122,1761297042447,-500.0,0.00039573,2]
[392272123,1761297042457,-500.0,0.00039589,30]
[392272124,1761297042467,-576.0,0.00039594,30]
[392272125,1761297042477,-5000.0,0.00039604,2]
[392272126,1761297042487,-1626.0,0.00039608,2]
[392272127,1761297042499,-500.0,0.00039633,30]
[392272128,1761297042508,-1000.0,0.00039637,7]
[392272129,1761297042518,-500.0,0.00039638,30]
[392272130,1761297042529,-576.0,0.00039649,30]
[392272131,1761297042540,-201.18,0.00039649,30]
[392272132,1761297042550,-500.0,0.00039653,2]
[392272133,1761297042562,-337.35,0.00039654,2]
[392272134,1761297042574,-212.01,0.0003968,14]
[392272135,1761297042584,-500.0,0.00039685,30]
[392272136,1761297042598,-933.43,0.00039694,2]
[392272137,1761297042608,-300.0,0.000397,14]
[392272138,1761297042619,-576.0,0.00039704,30]
[392272139,1761297042631,-38338.3571566,0.00039704,3]
[392272140,1761297042643,-8339.13244695,0.0003971,2]
[392272141,1761297042656,-1256.0,0.00039714,5]
[392272142,1761297042666,-15331.2677857,0.00039714,2]
[392272143,1761297042677,-32897.0640439,0.00039714,2]
[392272144,1761297042689,-150.0,0.00039747,7]
[392272145,1761297042703,-197.45,0.00039749,14]
[392272146,1761297042719,-576.0,0.00039759,30]
[392272147,1761297042731,-354.0,0.00039767,2]
[392272148,1761297042742,-532.10885711,0.00039775,2]
[392272149,1761297042751,-150.0,0.00039785,7]
[392272150,1761297042761,-19169.1785783,0.00039797,3]
[392272151,1761297042770,-14158.0315251,0.00039797,3]
[392272152,1761297042779,-1000.0,0.000398,120]
[392272154,1761297042789,-600.0,0.000398,14]
[392272156,1761297042799,-1000.0,0.000398,7]
[392272158,1761297042809,-1011.0,0.000398,7]
[392272160,1761297042819,-19169.1785783,0.00039808,3]
[392272162,1761297042829,-14158.0315251,0.00039808,3]
[392272164,1761297042839,-1425.0,0.00039808,2]
[392272166,1761297042848,-1271.33498302,0.00039809,2]
[392272168,1761297042858,-576.0,0.00039813,30]
[392272171,1761297042868,-33170.7581,0.00039818,2]
[392272173,1761297042878,-1000.0,0.00039818,2]
[392272175,1761297042887,-500.0,0.00039827,2]
[392272176,1761297042897,-150.0,0.00039828,3]
[392272177,1761297042906,-322.6107,0.00039828,3]
[392272178,1761297042915,-334.5472959,0.00039828,3]
[392272179,1761297042924,-346.92554585,0.00039828,3]
[392272180,1761297042934,-200.0,0.00039828,3]
[392272181,1761297042943,-359.76179104,0.00039828,3]
[392272182,1761297042953,-200.0,0.00039828,3]
[392272183,1761297042963,-373.07297731,0.00039828,3]
[392272184,1761297042973,-200.0,0.00039828,3]
[392272185,1761297042991,-359.76179103,0.00039828,3]
[392272186,1761297043001,-200.0,0.00039828,3]
[392272187,1761297043011,-222.4738,0.00039828,3]
[392272188,1761297043020,-500.0,0.00039828,3]
[392272189,1761297043032,-500.0,0.00039828,3]
[392272190,1761297043042,-233.23062855,0.00039828,3]
[392272191,1761297043053,-500.0,0.00039828,3]
[392272192,1761297043063,-500.0,0.00039828,3]
[392272193,1761297043073,-500.0,0.00039828,3]
[392272194,1761297043082,-500.0,0.00039828,3]
[392272195,1761297043093,-500.0,0.00039828,3]
[392272196,1761297043103,-500.0,0.00039828,3]
[392272197,1761297043113,-500.0,0.00039828,3]
[392272198,1761297043123,-500.0,0.00039828,3]
[392272199,1761297043132,-500.0,0.00039828,3]
[392272200,1761297043141,-277.35679052,0.00039828,3]
[392272201,1761297043151,-287.61899177,0.00039828,3]
[392272202,1761297043161,-298.26089446,0.00039828,3]
[392272203,1761297043174,-309.29654756,0.00039828,3]
[392272204,1761297043183,-320.74051982,0.00039828,3]
[392272205,1761297043193,-466.75402762,0.00039828,3]
[392272206,1761297043204,-14158.0315251,0.00039829,3]
[392272207,1761297043215,-19169.1785783,0.00039831,3]
[392272208,1761297043224,-150.0,0.00039839,2]
[392272209,1761297043234,-210.13780193,0.00039839,2]
[392272210,1761297043243,-200.0,0.00039839,2]
[392272211,1761297043254,-4744.05716,0.00039839,2]
[392272212,1761297043263,-500.0,0.0003984,30]
[392272213,1761297043272,-14158.0315251,0.0003984,3]
[392272214,1761297043284,-38338.3571566,0.00039851,3]
[392272215,1761297043294,-28316.0630502,0.00039851,3]
[392272216,1761297043303,-151.0,0.0003986,120]
[392272217,1761297043313,-151.0,0.0003986,120]
[392272218,1761297043322,-3294.729341,0.0003986,120]
[392272219,1761297043333,-3294.729341,0.0003986,120]
[392272220,1761297043342,-151.0,0.0003986,120]
[392272221,1761297043352,-3294.729341,0.0003986,120]
[392272222,1761297043363,-151.0,0.0003986,120]
[392272223,1761297043376,-151.0,0.0003986,120]
[392272224,1761297043388,-3294.729341,0.0003986,120]
[392272225,1761297043398,-317.255722,0.0003986,120]
[392272226,1761297043408,-317.255722,0.0003986,120]
[392272227,1761297043420,-317.255722,0.0003986,120]
[392272228,1761297043431,-152.002984,0.0003986,120]
[392272229,1761297043442,-151.0,0.0003986,120]
[392272230,1761297043453,-151.0,0.0003986,30]
[392272231,1761297043464,-317.255722,0.0003986,120]
[392272232,1761297043474,-151.0,0.0003986,120]
[392272233,1761297043484,-324.417827,0.0003986,120]
[392272234,1761297043493,-324.417827,0.0003986,120]
[392272235,1761297043504,-324.417827,0.0003986,120]
[392272236,1761297043514,-324.417827,0.0003986,120]
[392272237,1761297043525,-151.0,0.0003986,120]
[392272238,1761297043535,-151.0,0.0003986,120]
[392272239,1761297043546,-151.0,0.0003986,120]
[392272240,1761297043555,-224.412732,0.0003986,120]
[392272241,1761297043568,-151.0,0.0003986,120]
[392272242,1761297043578,-151.0,0.0003986,120]
[392272243,1761297043588,-151.0,0.0003986,120]
[392272244,1761297043598,-151.0,0.0003986,120]
[392272245,1761297043608,-151.0,0.0003986,120]
[392272246,1761297043617,-155.523178,0.0003986,120]
[392272247,1761297043629,-151.0,0.0003986,120]
[392272248,1761297043640,-151.0,0.0003986,120]
[392272249,1761297043651,-151.0,0.0003986,120]
[392272250,1761297043662,-151.0,0.0003986,120]
[392272251,1761297043672,-151.0,0.0003986,120]
[392272252,1761297043683,-19169.1785783,0.0003986,3]
[392272253,1761297043694,-14158.0315251,0.0003986,3]
[392272254,1761297043705,-57507.535735,0.0003986,3]
[392272255,1761297043716,-56632.1261004,0.0003986,3]
[392272256,1761297043726,-161.53545055,0.0003986,2]
[392272257,1761297043737,-1000.0,0.00039864,7]
[392272258,1761297043749,-576.0,0.00039868,30]
[392272259,1761297043760,-151.0,0.0003987,14]
[392272260,1761297043772,-151.0,0.0003987,120]
[392272261,1761297043782,-151.0,0.0003987,120]
[392272262,1761297043792,-151.0,0.0003987,120]
[392272263,1761297043801,-154.002616,0.0003987,120]
[392272264,1761297043811,-151.0,0.0003987,120]
[392272265,1761297043822,-153.123272,0.0003987,120]
[392272266,1761297043831,-151.0,0.0003987,120]
[392272267,1761297043841,-151.0,0.0003987,120]
[392272268,1761297043851,-151.0,0.0003987,120]
[392272269,1761297043860,-151.0,0.0003987,120]
[392272270,1761297043870,-151.0,0.0003987,120]
[392272271,1761297043879,-151.0,0.0003987,90]
[392272272,1761297043889,-1463.668576,0.0003987,120]
[392272273,1761297043899,-1463.668576,0.0003987,120]
[392272274,1761297043908,-222.567115,0.0003987,120]
[392272275,1761297043918,-1463.668576,0.0003987,120]
[392272276,1761297043928,-222.567115,0.0003987,120]
[392272277,1761297043938,-151.0,0.0003987,120]
[392272278,1761297043948,-151.0,0.0003987,120]
[392272279,1761297043958,-151.0,0.0003987,120]
[392272280,1761297043967,-151.0,0.0003987,120]
[392272281,1761297043976,-151.0,0.0003987,120]
[392272282,1761297043986,-151.0,0.0003987,120]
[392272283,1761297043995,-151.0,0.0003987,120]
[392272284,1761297044005,-151.0,0.0003987,120]
[392272285,1761297044015,-151.0,0.0003987,120]
[392272286,1761297044024,-151.0,0.0003987,120]
[392272287,1761297044035,-151.0,0.0003987,120]
[392272288,1761297044044,-151.0,0.0003987,120]
[392272289,1761297044054,-151.0,0.0003987,120]
[392272290,1761297044063,-517.476548,0.0003987,120]
[392272291,1761297044072,-517.476548,0.0003987,120]
[392272292,1761297044083,-517.476548,0.0003987,120]
[392272294,1761297044093,-517.476548,0.0003987,120]
[392272295,1761297044103,-151.0,0.0003987,120]
[392272296,1761297044112,-151.0,0.0003987,120]
[392272297,1761297044123,-151.0,0.0003987,120]
[392272298,1761297044134,-151.0,0.0003987,120]
[392272299,1761297044145,-151.0,0.0003987,120]
[392272300,1761297044155,-324.07699,0.0003987,120]
[392272301,1761297044164,-324.07699,0.0003987,120]
[392272302,1761297044174,-324.07699,0.0003987,120]
[392272303,1761297044184,-151.0,0.0003987,30]
[392272304,1761297044194,-151.0,0.0003987,120]
[392272305,1761297044205,-151.0,0.0003987,120]
[392272306,1761297044215,-324.07699,0.0003987,120]
[392272307,1761297044225,-151.0,0.0003987,120]
[392272308,1761297044234,-151.0,0.0003987,120]
[392272309,1761297044244,-168.246658,0.0003987,120]
[392272310,1761297044254,-509.703744,0.0003987,30]
[392272311,1761297044265,-185.336876,0.0003987,120]
[392272312,1761297044275,-19169.1785783,0.0003987,3]
[392272313,1761297044284,-185.336876,0.0003987,120]
[392272314,1761297044293,-185.336876,0.0003987,120]
[392272315,1761297044304,-151.0,0.0003987,120]
[392272316,1761297044313,-185.336876,0.0003987,120]
[392272317,1761297044322,-14158.0315251,0.0003987,3]
[392272318,1761297044332,-151.0,0.0003987,120]
[392272319,1761297044341,-171.612298,0.0003987,120]
[392272320,1761297044351,-151.0,0.0003987,120]
[392272321,1761297044360,-171.612298,0.0003987,120]
[392272322,1761297044370,-151.0,0.0003987,120]
[392272323,1761297044379,-151.0,0.0003987,120]
[392272324,1761297044389,-171.612298,0.0003987,120]
[392272325,1761297044398,-151.0,0.0003987,120]
[392272326,1761297044408,-171.612298,0.0003987,120]
[392272327,1761297044418,-229.672384,0.0003987,120]
[392272328,1761297044428,-151.0,0.0003987,120]
[392272329,1761297044440,-151.0,0.0003987,120]
[392272330,1761297044451,-151.0,0.0003987,120]
[392272331,1761297044462,-151.0,0.0003987,120]
[392272332,1761297044473,-151.0,0.0003987,120]
[392272333,1761297044483,-286.38179,0.0003987,120]
[392272334,1761297044492,-151.0,0.0003987,120]
[392272335,1761297044502,-229.086485,0.0003987,120]
[392272336,1761297044512,-286.38179,0.0003987,120]
[392272337,1761297044522,-151.0,0.0003987,120]
[392272338,1761297044532,-229.086485,0.0003987,120]
[392272339,1761297044542,-286.38179,0.0003987,120]
[392272340,1761297044552,-229.086485,0.0003987,120]
[392272341,1761297044562,-286.38179,0.0003987,120]
[392272342,1761297044572,-229.086485,0.0003987,120]
[392272343,1761297044583,-151.0,0.0003987,120]
[392272344,1761297044594,-151.0,0.0003987,120]
[392272345,1761297044604,-151.0,0.0003987,120]
[392272346,1761297044615,-500.0,0.0003987,2]
[392272347,1761297044625,-151.0,0.0003987,120]
[392272348,1761297044637,-151.0,0.0003987,120]
[392272349,1761297044649,-151.0,0.0003987,120]
[392272350,1761297044661,-151.0,0.0003987,120]
[392272351,1761297044671,-151.0,0.0003987,120]
[392272352,1761297044681,-151.0,0.0003987,120]
[392272353,1761297044692,-151.0,0.0003987,120]
[392272354,1761297044703,-3294.729341,0.0003987,120]
[392272355,1761297044714,-3294.729341,0.0003987,120]
[392272356,1761297044724,-151.0,0.0003987,120]
[392272357,1761297044735,-3294.729341,0.0003987,120]
[392272358,1761297044745,-151.0,0.0003987,120]
[392272359,1761297044755,-153.321221,0.0003987,120]